[Event "FIDE WCCC G12 2018"]
[Site "Santiago de Compostela"]
[Date "2018.11.07"]
[Round "3"]
[White "Kairbekova, Amina"]
[Black "Boramanikar Tanisha S"]
[Result "1-0"]
[ECO "B33"]
[WhiteElo "1939"]
[BlackElo "1716"]
[Annotator "NA RC"]
[PlyCount "83"]
[EventDate "2018.11.04"]
[EventType "swiss"]
[EventCountry "ESP"]
[SourceTitle "playchess.com"]
[Source "ChessBase"]
[SourceQuality "1"]
[TimeControl "40/5400+30:1800+30"]

{[%evp 41,83,36,122,97,110,72,116,122,138,145,129,118,124,68,125,57,88,54,127,63,420,437,401,430,409,423,835,1010,1160,1652,1114,1261,32767,1482,1384,1910,2989,1497,1175,2712,32767,32767,29989,29990]} 1. e4 {[%emt 0:00:00]} c5 {[%emt 0:00:00]} 2. Nf3 {[%emt 0:00:00]} Nc6 {[%emt 0:00:03]} 3. d4 {[%emt 0:00:04]} cxd4 {[%emt 0:00:13]} 4. Nxd4 {[%emt 0:00:05]} Nf6 {[%emt 0:00:12]} 5. Nc3 {[%emt 0:00:34]} e5 {[%emt 0:00:14]} 6. Ndb5 {[%emt 0:00:07]} d6 {[%emt 0:00:16]} 7. Bg5 {[%emt 0:00:06]} a6 {[%emt 0:00:19]} 8. Na3 {[%emt 0:00:10]} b5 {[%emt 0:00:06]} 9. Nd5 {[%emt 0:00:03]} Be7 {[%emt 0:00:24]} 10. Bxf6 {[%emt 0:00:06]} Bxf6 {[%emt 0:00:10]} 11. c4 {[%emt 0:00:03]} b4 {[%emt 0:00:49]} 12. Nc2 {[%emt 0:00:13]} Rb8 {[%emt 0:01:20]} 13. b3 {[%emt 0:00:25]} Bg5 {[%emt 0:02:20] B33: Sicilian: Pelikan and Sveshnikov Variations} 14. g3 {[%emt 0:03:50]} O-O {[%emt 0:01:54]} 15. Bg2 {[%emt 0:00:05]} Be6 {[%emt 0:01:10]} 16. O-O {[%emt 0:00:16]} a5 {[%emt 0:02:42]} 17. f4 {[%emt 0:00:49]} (17. h4 Bh6 18. Kh2 Ne7 19. Nxe7+ Qxe7 20. Bh3 Qc7 21. Qe2 Qc5 22. Rad1 a4 23. Kg2 Ra8 24. Rd3 axb3 25. axb3 {½-½ (145) Alekseenko,K (2563)-Dubov,D (2666) Sochi 2017}) 17... Be7 {[%emt 0:10:07]} 18. Kh1 {[%emt 0:02:49]} Kh8 {[%emt 0:07:01]} 19. Nxe7 $146 {[%emt 0:06:16]} ({Predecessor:} 19. Nce3 f6 20. Nf5 Bxf5 21. exf5 {0-1 (55) Mestre Bellido,H (2290)-Munoz Pantoja,M (2500) Barcelona 2017}) 19... Qxe7 {[%emt 0:04:31]} 20. f5 {[%emt 0:00:07]} Bc8 {[%emt 0:03:51]} 21. f6 {[%emt 0:06:08]} Qe6 {[%emt 0:03:28]} ({Black should play} 21... gxf6 $14 22. Qf3 Ra8) 22. fxg7+ {[%emt 0:00:09]} Kxg7 {[%emt 0:00:09]} 23. Qd2 {[%emt 0:02:29]} Qg6 {[%emt 0:05:45]} 24. Rf5 {[%emt 0:07:42]} h6 {[%emt 0:08:42]} 25. Raf1 {[%emt 0:01:09]} Be6 {[%emt 0:07:44]} 26. R5f3 {[%emt 0:16:29]} Rbd8 {[%emt 0:03:43]} 27. Rd3 {[%emt 0:03:31]} Bc8 {[%emt 0:02:16]} (27... Qg5 $14) 28. Ne3 {[%emt 0:08:08]} Nd4 {[%emt 0:01:37]} 29. Nd5 {[%emt 0:01:26]} Bg4 {[%emt 0:03:29]} (29... f6 $14) 30. Rf2 {[%emt 0:07:13]} f5 $2 {[%emt 0:06:26]} (30... f6 $16 {is more resistant.}) 31. Rxd4 {[%emt 0:02:30]} exd4 {[%emt 0:04:31]} 32. Qxd4+ {[%emt 0:00:45]} Kh7 {[%emt 0:00:28]} 33. exf5 {[%emt 0:00:17]} Qg5 {[%emt 0:08:16]} (33... Bxf5 $142 34. g4 Bb1) 34. h4 {[%emt 0:00:55]} Qc1+ {[%emt 0:04:44]} 35. Rf1 {[%emt 0:00:26]} Qxf1+ {[%emt 0:01:03]} 36. Bxf1 {[%emt 0:00:08]} Bxf5 {[%emt 0:00:08]} 37. Bd3 {[%emt 0:01:06]} Bxd3 {[%emt 0:00:50]} 38. Qxd3+ {[%emt 0:00:04]} Kg7 {[%emt 0:00:28]} 39. Qd4+ {[%emt 0:00:07]} Kh7 {[%emt 0:00:23]} 40. Qe4+ {[%emt 0:00:00]} Kg7 {[%emt 0:00:00]} 41. Qe7+ {[%emt 0:00:58]} Kh8 {[%emt 0:00:51]} 42. Nf6 {[%emt 0:00:05]} 1-0

[Event "FIDE WCCC G12 2018"]
[Site "Santiago de Compostela"]
[Date "2018.11.07"]
[Round "3"]
[White "Nadzamova, Viktoria"]
[Black "Menon, Gauri"]
[Result "0-1"]
[ECO "C77"]
[WhiteElo "1923"]
[BlackElo "1592"]
[Annotator "NA RC"]
[PlyCount "122"]
[EventDate "2018.11.04"]
[EventType "swiss"]
[EventCountry "ESP"]
[SourceTitle "playchess.com"]
[Source "ChessBase"]
[SourceQuality "1"]
[TimeControl "40/5400+30:1800+30"]

{[%evp 28,122,19,0,0,0,0,-16,0,-9,-16,-30,-45,-50,28,33,56,51,56,17,21,10,12,14,16,18,21,32767,32767,0,0,-277,-296,-309,32767,-331,70,32767,32767,32767,155,160,160,150,164,138,154,162,178,120,133,51,113,120,119,200,173,179,226,295,238,187,422,27,10,20,33,0,29,98,81,64,17,14,71,8,52,8,0,8,8,8,8,0,0,0,8,-1494,-6117,-12839,-29975,-29988,-29989,-29990,-29991,-29991,-29992]} 1. e4 {[%emt 0:00:00]} e5 {[%emt 0:00:00]} 2. Nf3 {[%emt 0:00:00]} Nc6 {[%emt 0:00:00]} 3. Bb5 {[%emt 0:00:00]} a6 {[%emt 0:00:00]} 4. Ba4 {[%emt 0:00:00]} Nf6 {[%emt 0:00:00]} 5. d3 {[%emt 0:00:00]} b5 {[%emt 0:00:19]} 6. Bb3 {[%emt 0:00:03]} Bc5 {[%emt 0:00:12]} 7. O-O {[%emt 0:00:45]} d6 {[%emt 0:00:11]} 8. c3 {[%emt 0:00:05]} O-O {[%emt 0:00:58]} 9. h3 {[%emt 0:02:48]} h6 {[%emt 0:01:35]} 10. Re1 {[%emt 0:01:45]} Re8 {[%emt 0:01:30]} 11. Nbd2 {[%emt 0:09:00]} Bb6 {[%emt 0:02:16] C78: Ruy Lopez: Archangelsk and Möller Defences} 12. a4 {[%emt 0:06:03]} Rb8 {[%emt 0:01:52]} 13. axb5 {[%emt 0:06:14]} axb5 {[%emt 0:00:26]} 14. Nf1 {[%emt 0:11:21]} Be6 {[%emt 0:09:34] [#]} 15. Bc2 $146 {[%emt 0:04:38]} ({Predecessor:} 15. Be3 d5 16. Bxb6 Rxb6 17. exd5 Bxd5 18. Bc2 Rb8 {½-½ (68) Lanka,Z (2506)-Ragger,M (2565) Austria 2009}) 15... Ra8 {[%emt 0:08:16]} 16. Rxa8 {[%emt 0:10:52]} Qxa8 {[%emt 0:01:51]} 17. d4 {[%emt 0:01:34]} exd4 {[%emt 0:06:20]} 18. cxd4 {[%emt 0:01:27]} Nb4 {[%emt 0:01:56]} 19. d5 {[%emt 0:08:02]} Bd7 {[%emt 0:02:21]} 20. Ng3 {[%emt 0:13:00]} Qa7 {[%emt 0:05:32]} (20... Qa1 $15) 21. Be3 {[%emt 0:02:04]} Ra8 {[%emt 0:08:22]} 22. Bxb6 {[%emt 0:02:11]} Qxb6 {[%emt 0:00:23]} 23. Bb3 {[%emt 0:00:21]} Na6 {[%emt 0:05:16]} 24. Nd4 {[%emt 0:02:08]} Nc5 {[%emt 0:04:01]} 25. Bc2 {[%emt 0:00:52]} b4 {[%emt 0:02:21]} 26. b3 {[%emt 0:02:24]} Ra3 {[%emt 0:05:23]} 27. Ngf5 {[%emt 0:00:56]} Bxf5 {[%emt 0:04:25]} 28. Nxf5 {[%emt 0:01:33]} Ra2 {[%emt 0:06:54]} 29. Ne7+ $2 {[%emt 0:03:13]} (29. Qb1 $11 {and White has nothing to worry.} Ncxe4 30. Qxa2 (30. Bxe4 $2 Qxf2+ 31. Kh2 Rb2 $19) 30... Qxf2+ 31. Kh2 Qxe1 32. Qa8+ Kh7 33. Qf8) 29... Kf8 {[%emt 0:01:08]} 30. Nc6 {[%emt 0:00:16]} Ncxe4 {[%emt 0:04:07]} 31. Qe2 {[%emt 0:08:15]} Qxf2+ $2 {[%emt 0:00:48]} ({Don't go for} 31... Nxd5 $2 32. Qxe4 Qxc6 33. Qh7 $18) (31... Qc5 $19 32. Rc1 g5) 32. Qxf2 {[%emt 0:01:21]} Nxf2 {[%emt 0:00:49]} 33. Nxb4 {[%emt 0:00:07]} Rb2 {[%emt 0:11:42]} (33... Rxc2 $142 34. Nxc2 N2e4) 34. Kxf2 {[%emt 0:00:16]} Nxd5 {[%emt 0:00:50]} 35. Nxd5 {[%emt 0:00:42]} Rxc2+ {[%emt 0:00:11]} 36. Kg1 {[%emt 0:00:26]} Rc5 {[%emt 0:00:29]} 37. Rd1 {[%emt 0:00:39]} c6 {[%emt 0:00:27]} 38. Nc7 {[%emt 0:01:33]} ({White should play} 38. Nb6 $18 Rb5 39. Nc4) 38... Ke7 {[%emt 0:03:49]} 39. Re1+ {[%emt 0:01:25]} ({White should try} 39. b4 $16 Rc3 40. Rf1) 39... Re5 {[%emt 0:01:33] [#]} (39... Kd7 $1 $14) 40. Rxe5+ $1 {[%emt 0:00:00]} dxe5 {[%emt 0:00:00]} 41. Kf2 {[%emt 0:01:38]} Kd7 {[%emt 0:00:59]} 42. Na6 {[%emt 0:00:15]} f5 {[%emt 0:03:40]} 43. Ke3 {[%emt 0:03:17]} Kd6 {[%emt 0:01:17]} 44. Kd3 {[%emt 0:00:54]} g5 {[%emt 0:02:46] [#]} 45. Nb4 $2 {[%emt 0:01:42]} (45. g4 $1 $18) 45... e4+ {[%emt 0:02:31]} 46. Ke3 {[%emt 0:02:05]} c5 {[%emt 0:05:33]} 47. Na6 {[%emt 0:02:31]} (47. Nc2 $14) 47... Kd5 {[%emt 0:02:50] [#]} 48. Nc7+ $1 {[%emt 0:00:59]} Ke5 {[%emt 0:01:15]} (48... Kd6 $1 $11 49. Ne8+ Ke5) 49. Nb5 {[%emt 0:03:04]} f4+ {[%emt 0:01:03]} ({Black should try} 49... Kd5 $16) 50. Ke2 {[%emt 0:00:49]} h5 {[%emt 0:01:23]} (50... Kd5 $11) 51. Kf2 {[%emt 0:00:41]} (51. Nc7 $16) 51... g4 {[%emt 0:03:06]} 52. h4 {[%emt 0:02:13]} e3+ $1 {[%emt 0:03:59]} 53. Ke2 {[%emt 0:01:27]} Ke4 {[%emt 0:02:16]} 54. Nd6+ {[%emt 0:00:54]} Kd4 {[%emt 0:00:51]} 55. Nf5+ {[%emt 0:01:19]} (55. Nf7 $11) 55... Ke4 {[%emt 0:00:08]} 56. Nd6+ {[%emt 0:03:58]} Kd4 {[%emt 0:02:05]} 57. Ne8 $2 {[%emt 0:03:33] [#]} f3+ $1 {[%emt 0:00:36]} 58. gxf3 {[%emt 0:01:46] [#]} g3 $1 {[%emt 0:00:30]} 59. Kf1 {[%emt 0:06:53]} Kd3 {[%emt 0:00:32]} 60. Nd6 {[%emt 0:01:00]} e2+ {[%emt 0:00:19]} 61. Ke1 {[%emt 0:00:12]} g2 {[%emt 0:00:14]} 0-1

[Event "FIDE WCCC G12 2018"]
[Site "Santiago de Compostela"]
[Date "2018.11.07"]
[Round "3"]
[White "Omonova, Umida"]
[Black "Bravo Mallco, Kate Azumi"]
[Result "1-0"]
[ECO "B52"]
[WhiteElo "1854"]
[BlackElo "1698"]
[Annotator "NA RC"]
[PlyCount "81"]
[EventDate "2018.11.04"]
[EventType "swiss"]
[EventCountry "ESP"]
[SourceTitle "playchess.com"]
[Source "ChessBase"]
[SourceQuality "1"]
[TimeControl "40/5400+30:1800+30"]

{[%evp 24,79,27,16,78,29,35,30,33,33,66,63,64,68,60,63,68,65,118,109,132,97,95,81,132,68,112,41,81,50,66,53,119,38,71,51,103,77,113,86,88,23,27,0,513,0,148,121,214,32767,32767,160,245,32767,32767,143,145,169]} 1. e4 {[%emt 0:00:00]} c5 {[%emt 0:00:00]} 2. Nf3 {[%emt 0:01:18]} d6 {[%emt 0:00:09]} 3. Bb5+ {[%emt 0:01:10]} Bd7 {[%emt 0:01:40]} 4. Bxd7+ {[%emt 0:00:46]} Qxd7 {[%emt 0:01:35]} 5. O-O {[%emt 0:00:14]} Nc6 {[%emt 0:00:09]} 6. Re1 {[%emt 0:02:03]} Nf6 {[%emt 0:01:12]} 7. d3 {[%emt 0:01:03] B52: Sicilian: Moscow Variation with 3...Bd7} (7. c3 e6 8. d4 cxd4 9. cxd4 d5 10. e5 Ne4 11. Nbd2 Nxd2 12. Bxd2 Be7 13. Rc1 O-O 14. Rc3 Rfc8 15. h4 Bd8 16. Rd3 Qc7 17. Ng5 h6 18. Nh3 Ne7 19. Bc3 b5 20. Nf4 Nf5 21. Qg4 Bxh4 22. Nh5 {½-½ (52) Nakamura,H (2769)-Grischuk,A (2766) Paris 2018}) 7... g6 {[%emt 0:01:55]} 8. Nbd2 {[%emt 0:03:15]} Bg7 {[%emt 0:10:35]} 9. c3 {[%emt 0:01:09]} Nh5 $146 {[%emt 0:05:46]} ({Predecessor:} 9... O-O 10. a4 Rac8 11. h3 Ne5 12. Qe2 Qc7 13. Nxe5 dxe5 14. Nc4 {½-½ (27) Norgaard,J (2435)-Delgado Ramirez,N (2554) Yucatan 2004}) 10. Nf1 {[%emt 0:03:41]} Rc8 {[%emt 0:01:33]} 11. Be3 {[%emt 0:03:05]} O-O {[%emt 0:01:25]} 12. Qe2 {[%emt 0:04:46]} Na5 {[%emt 0:27:20]} 13. Rad1 {[%emt 0:01:47]} d5 {[%emt 0:10:03]} 14. e5 {[%emt 0:02:33]} f5 {[%emt 0:07:27]} 15. d4 {[%emt 0:02:41]} c4 {[%emt 0:00:58]} 16. h3 {[%emt 0:02:57]} f4 {[%emt 0:07:50]} 17. Bc1 {[%emt 0:01:44]} e6 {[%emt 0:00:10]} 18. N1h2 {[%emt 0:00:26]} b5 {[%emt 0:04:42]} 19. Ng4 {[%emt 0:00:37]} Nc6 {[%emt 0:00:15]} 20. b3 {[%emt 0:02:36]} Na5 {[%emt 0:09:08]} 21. Ba3 {[%emt 0:01:14]} Rfe8 {[%emt 0:00:27]} 22. Bb4 {[%emt 0:00:38]} Nb7 {[%emt 0:00:10]} 23. bxc4 {[%emt 0:02:13]} a5 {[%emt 0:01:55]} 24. Ba3 {[%emt 0:00:39]} Rxc4 {[%emt 0:00:09]} 25. Bb2 {[%emt 0:00:29]} ({White should try} 25. Qb2 $16) 25... Kh8 {[%emt 0:03:01]} 26. Qd3 {[%emt 0:01:17]} Ra8 {[%emt 0:00:55]} 27. Nd2 {[%emt 0:00:37]} Rcc8 {[%emt 0:00:19]} (27... Ra4 $14) 28. Rb1 {[%emt 0:02:38]} ({White should play} 28. Ba3 $16) 28... b4 {[%emt 0:01:05]} 29. Rec1 {[%emt 0:00:33]} Qa4 {[%emt 0:00:57]} 30. c4 {[%emt 0:01:14]} Qc6 {[%emt 0:01:23]} 31. cxd5 {[%emt 0:01:45]} Qxd5 {[%emt 0:00:04]} 32. Nc4 {[%emt 0:00:21]} Rc6 {[%emt 0:00:35]} 33. Rc2 {[%emt 0:01:26]} Rac8 $2 {[%emt 0:00:36] [#]} (33... Nc5 $11 {and Black has nothing to worry.} 34. Qd1 Na4) 34. Rbc1 $2 {[%emt 0:00:34]} (34. Nb6 $1 $18 {[%cal Rb6d5][%mdl 512]} Qxa2 (34... Rxb6 35. Rxc8+) 35. Ra1 Qxa1+ 36. Bxa1 Rxc2 37. Nxc8 Rxc8 38. Qa6) 34... Qd8 {[%emt 0:00:57]} (34... Nc5 $1 $11 35. Qd2 Ne4) 35. Kh2 {[%emt 0:02:27]} (35. Nd2 $18 Qd5 36. a3) 35... Qc7 {[%emt 0:00:15]} 36. Qf3 {[%emt 0:02:56]} Nd8 {[%emt 0:00:21]} 37. d5 {[%emt 0:01:58]} exd5 {[%emt 0:00:27]} 38. Qxd5 {[%emt 0:00:10]} Rc5 {[%emt 0:00:07]} 39. Qe4 {[%emt 0:01:08]} ({White should try} 39. Nd6 $18 Rxd5 40. Rxc7 Rxc7 41. Rxc7 Rxd6 42. exd6 Bxb2 43. Rc8) 39... Ne6 {[%emt 0:01:17]} 40. Nf6 $18 {[%emt 0:00:00]} Qd8 {[%emt 0:00:00]} 41. Nd6 {[%emt 0:03:05]} 1-0

[Event "FIDE WCCC G12 2018"]
[Site "Santiago de Compostela"]
[Date "2018.11.07"]
[Round "3"]
[White "Karmanova, Olga Dm."]
[Black "Abdala Cancino, Patricia Anastas"]
[Result "1-0"]
[ECO "A20"]
[WhiteElo "1819"]
[BlackElo "1551"]
[Annotator "NA RC"]
[PlyCount "119"]
[EventDate "2018.11.04"]
[EventType "swiss"]
[EventCountry "ESP"]
[SourceTitle "playchess.com"]
[Source "ChessBase"]
[SourceQuality "1"]
[TimeControl "40/5400+30:1800+30"]

{[%evp 36,104,29,0,92,77,81,76,90,94,86,83,96,81,83,58,82,41,132,67,77,81,76,69,100,26,18,0,38,0,0,0,15,0,0,0,5,9,15,0,18,0,3,7,6,20,3,6,20,15,18,18,23,12,16,13,61,58,214,32,0,32767,32767,183,195,200,32767,32767,122,169,113]} 1. c4 {[%emt 0:00:00]} e5 {[%emt 0:01:08]} 2. g3 {[%emt 0:00:39]} g6 {[%emt 0:02:08]} 3. Bg2 {[%emt 0:00:22]} Bg7 {[%emt 0:00:13]} 4. Nc3 {[%emt 0:00:27]} Nf6 {[%emt 0:01:02]} 5. e4 {[%emt 0:00:54]} Nc6 {[%emt 0:00:33]} 6. Nge2 {[%emt 0:00:21]} O-O {[%emt 0:00:48]} 7. O-O {[%emt 0:00:24]} d6 {[%emt 0:00:36]} 8. d3 {[%emt 0:01:03]} Nh5 {[%emt 0:00:44]} 9. Be3 {[%emt 0:05:57]} f5 {[%emt 0:03:03]} 10. f4 {[%emt 0:01:11] A26: English Opening vs King's Indian with ...Nc6 and d3} Nf6 {[%emt 0:04:06]} 11. Rb1 $146 {[%emt 0:03:03]} ({Predecessor:} 11. h3 fxe4 12. dxe4 exf4 13. gxf4 Be6 14. b3 Qd7 15. Kh2 Rae8 16. Qd2 Re7 17. Rae1 Nh5 18. Rf3 Ref7 19. Ref1 {½-½ (39) Popov,M (2416)-Plat,V (2569) Marianske Lazne 2018}) 11... Ng4 {[%emt 0:00:41]} 12. Bd2 {[%emt 0:01:22]} Nb4 {[%emt 0:01:16]} 13. Bc1 {[%emt 0:00:18]} Nc6 {[%emt 0:04:53]} 14. b4 {[%emt 0:01:04]} exf4 {[%emt 0:02:38]} 15. Bxf4 {[%emt 0:01:08]} Nd4 {[%emt 0:02:50]} 16. h3 {[%emt 0:00:57]} Nxe2+ {[%emt 0:00:31]} 17. Nxe2 {[%emt 0:00:07]} Nh6 {[%emt 0:01:15]} 18. Kh2 {[%emt 0:05:07]} fxe4 {[%emt 0:03:21]} 19. dxe4 {[%emt 0:02:00]} g5 {[%emt 0:00:46]} (19... Nf7 $11) 20. Qd5+ {[%emt 0:00:46]} Nf7 {[%emt 0:00:32] [#]} 21. Bxg5 $1 {[%emt 0:01:17]} Qxg5 {[%emt 0:01:14] [#]} 22. Rxf7 $1 {[%emt 0:01:17]} Qxd5 {[%emt 0:00:08]} 23. Rxf8+ {[%emt 0:00:07]} Bxf8 {[%emt 0:00:22]} 24. cxd5 {[%emt 0:01:34]} Bd7 {[%emt 0:00:19]} 25. Rc1 {[%emt 0:01:21]} Rc8 {[%emt 0:00:11]} 26. Nf4 {[%emt 0:04:17]} Bh6 {[%emt 0:00:07]} (26... c6 $14) 27. Rc2 {[%emt 0:00:39]} (27. h4 $16) 27... c6 {[%emt 0:00:22]} 28. dxc6 {[%emt 0:01:59]} Rxc6 {[%emt 0:01:11]} 29. Rd2 {[%emt 0:07:34]} Rb6 {[%emt 0:00:37]} 30. Rd4 {[%emt 0:04:17]} Bg7 {[%emt 0:00:41]} 31. Rd5 {[%emt 0:05:31]} Be8 {[%emt 0:01:26]} 32. Ra5 {[%emt 0:03:27]} Rxb4 {[%emt 0:02:24]} 33. Rxa7 {[%emt 0:03:30]} Bc6 {[%emt 0:00:43]} 34. Ra8+ {[%emt 0:00:12]} Kf7 {[%emt 0:00:11]} 35. Rc8 {[%emt 0:01:04]} Bxe4 {[%emt 0:08:11]} 36. Rc7+ {[%emt 0:00:55]} Kg8 {[%emt 0:00:40]} 37. Rc8+ {[%emt 0:11:38]} Kf7 {[%emt 0:00:27]} 38. Rc7+ {[%emt 0:01:13]} Kg8 {[%emt 0:01:31]} 39. Bxe4 {[%emt 0:14:43]} Rxe4 {[%emt 0:00:06]} 40. Rxb7 {[%emt 0:00:00]} Ra4 {[%emt 0:00:00]} 41. h4 {[%emt 0:02:13]} Rxa2+ {[%emt 0:01:50]} 42. Kh3 {[%emt 0:00:06]} Be5 {[%emt 0:01:08]} 43. Kg4 {[%emt 0:02:08]} Ra4 {[%emt 0:00:37]} 44. Kf5 {[%emt 0:01:51]} Ra3 {[%emt 0:03:17]} 45. Ke6 {[%emt 0:04:08]} Bxf4 {[%emt 0:03:02]} 46. gxf4 {[%emt 0:00:06]} Rh3 $2 {[%emt 0:00:06] [#]} ({Lieber} 46... Ra4 $14) 47. Kf6 {[%emt 0:00:10]} ({Bloß nicht} 47. Kxd6 Rxh4 48. Rb8+ Kg7 $11) (47. h5 $1 $16) 47... h6 {[%emt 0:01:14]} 48. Kg6 {[%emt 0:00:06]} Kf8 {[%emt 0:00:11]} 49. h5 {[%emt 0:00:26]} ({Don't take} 49. Kxh6 $6 Rxh4+ 50. Kg5 Rh1 $14) 49... Rh4 {[%emt 0:00:35] [#]} (49... Rg3+ $16 {might work better.} 50. Kf6 (50. Kxh6 d5 $18) 50... Kg8) 50. f5 $1 {[%emt 0:00:07]} ({Don't take} 50. Kxh6 $6 Rxf4 51. Rd7 Rf6+ 52. Kg5 Re6 $14) 50... Rg4+ {[%emt 0:00:19]} 51. Kxh6 {[%emt 0:00:06]} d5 {[%emt 0:01:16]} ({Black should play} 51... Rg3 $14 52. Kh7 d5) 52. Rd7 {[%emt 0:02:14]} d4 $16 {[%emt 0:00:10]} (52... Rg1 $1 $11 {keeps the balance.}) 53. f6 {[%emt 0:01:52]} Ke8 {[%emt 0:04:53]} 54. Rg7 {[%emt 0:00:20]} Rf4 {[%emt 0:00:29]} 55. Kg5 {[%emt 0:00:15]} Rf2 {[%emt 0:00:52]} 56. h6 {[%emt 0:00:11]} d3 {[%emt 0:00:23]} 57. h7 {[%emt 0:00:20]} Rh2 {[%emt 0:00:06]} 58. Rg8+ {[%emt 0:00:13]} Kf7 {[%emt 0:00:06]} 59. h8=Q {[%emt 0:00:13]} Rxh8 {[%emt 0:00:59]} 60. Rxh8 {[%emt 0:00:09] Ke8} 1-0

[Event "FIDE WCCC G12 2018"]
[Site "Santiago de Compostela"]
[Date "2018.11.07"]
[Round "3"]
[White "Starosta, Martyna"]
[Black "Ke, Rianne"]
[Result "0-1"]
[ECO "B78"]
[WhiteElo "1790"]
[BlackElo "1600"]
[Annotator "NA RC"]
[PlyCount "106"]
[EventDate "2018.11.04"]
[EventType "swiss"]
[EventCountry "ESP"]
[SourceTitle "playchess.com"]
[Source "ChessBase"]
[SourceQuality "1"]
[TimeControl "40/5400+30:1800+30"]

1. e4 {[%emt 0:00:00]} c5 {[%emt 0:00:00]} 2. Nf3 {[%emt 0:00:00]} d6 {[%emt 0:00:00]} 3. d4 {[%emt 0:00:00]} cxd4 {[%emt 0:00:00]} 4. Nxd4 {[%emt 0:00:03]} Nf6 {[%emt 0:00:00]} 5. Nc3 {[%emt 0:00:13]} g6 {[%emt 0:00:03]} 6. Be3 {[%emt 0:01:09]} Bg7 {[%emt 0:00:09]} 7. f3 {[%emt 0:01:40]} O-O {[%emt 0:00:14]} 8. Qd2 {[%emt 0:02:01]} Nc6 {[%emt 0:00:09]} 9. Bc4 {[%emt 0:00:47]} Bd7 {[%emt 0:00:25]} 10. O-O-O {[%emt 0:00:39]} Rc8 {[%emt 0:00:31]} 11. Bb3 {[%emt 0:03:13]} Ne5 {[%emt 0:01:04]} 12. g4 {[%emt 0:03:00]} Nc4 {[%emt 0:03:44]} 13. Bxc4 {[%emt 0:00:45]} Rxc4 {[%emt 0:00:06]} 14. Kb1 {[%emt 0:04:50]} Qc8 {[%emt 0:13:52]} 15. h4 {[%emt 0:02:29]} h5 {[%emt 0:00:53]} 16. g5 {[%emt 0:08:14]} Nh7 {[%emt 0:02:19]} 17. f4 {[%emt 0:03:07]} b5 {[%emt 0:06:24]} 18. Nd5 {[%emt 0:09:06]} Re8 {[%emt 0:02:36]} 19. b3 {[%emt 0:02:56]} Rc5 {[%emt 0:01:52]} 20. Ne2 {[%emt 0:08:53]} Bg4 {[%emt 0:04:56]} 21. Bxc5 {[%emt 0:05:26]} Qxc5 {[%emt 0:00:09]} 22. Rhe1 {[%emt 0:07:31]} e6 {[%emt 0:06:06]} 23. Nf6+ {[%emt 0:07:22]} Nxf6 {[%emt 0:00:40]} 24. gxf6 {[%emt 0:00:09]} Bxf6 {[%emt 0:00:07]} 25. Qxd6 {[%emt 0:03:17]} Qxd6 {[%emt 0:03:15]} 26. Rxd6 {[%emt 0:00:15]} Bxh4 {[%emt 0:00:12]} 27. Rdd1 {[%emt 0:02:37]} Bxe1 {[%emt 0:00:48]} 28. Rxe1 {[%emt 0:00:05]} e5 {[%emt 0:01:08]} 29. Nc3 {[%emt 0:03:51]} exf4 {[%emt 0:03:02]} 30. Nd5 {[%emt 0:00:29]} Kg7 {[%emt 0:01:23]} 31. Nxf4 {[%emt 0:00:37]} g5 {[%emt 0:00:46]} 32. Nd3 {[%emt 0:01:23]} h4 {[%emt 0:01:30]} 33. Rg1 {[%emt 0:01:45]} Bf3 {[%emt 0:01:34]} 34. Rxg5+ {[%emt 0:02:07]} Kh6 {[%emt 0:00:26]} 35. Rxb5 {[%emt 0:02:52]} Bxe4 {[%emt 0:02:30]} 36. Nf2 {[%emt 0:02:30]} Bxc2+ {[%emt 0:00:45]} 37. Kc1 {[%emt 0:01:07]} Bg6 {[%emt 0:01:12]} 38. Rb4 {[%emt 0:02:21]} Kh5 {[%emt 0:01:34]} 39. Kd2 {[%emt 0:01:20]} Rc8 {[%emt 0:05:41]} 40. Ra4 {[%emt 0:00:00]} Rc2+ {[%emt 0:00:00]} 41. Ke1 {[%emt 0:03:38]} Rc7 {[%emt 0:02:38]} 42. Kf1 {[%emt 0:01:31]} f6 {[%emt 0:02:34]} 43. Kg2 {[%emt 0:03:18]} f5 {[%emt 0:04:05]} 44. Nh3 {[%emt 0:02:11]} Be8 {[%emt 0:06:01]} 45. Nf4+ {[%emt 0:02:27]} Kg4 {[%emt 0:00:58]} 46. Rd4 {[%emt 0:01:16]} Bc6+ {[%emt 0:01:28]} 47. Kf2 {[%emt 0:01:11]} Be4 {[%emt 0:00:38]} 48. Nd5 {[%emt 0:01:37]} Rc2+ {[%emt 0:01:28]} 49. Kg1 {[%emt 0:00:54]} Kg3 {[%emt 0:01:05]} 50. Ne3 {[%emt 0:01:06]} h3 {[%emt 0:01:12]} 51. Rd2 {[%emt 0:01:18]} Rc1+ {[%emt 0:01:01]} 52. Nf1+ {[%emt 0:00:20]} Rxf1+ {[%emt 0:00:18]} 53. Kxf1 {[%emt 0:00:08]} h2 0-1